fUSD/lending_fUSD_20250828
["ID","MTS","AMOUNT","RATE_DAILY","PERIOD"]
[381928321,1756414237683,-232.26,0.00019863,2]
[381928323,1756414237692,-168.0,0.00019994,2]
[381928325,1756414237701,-1018.17579151,0.0002,2]
[381928327,1756414237710,-168.0,0.00020021,2]
[381928329,1756414237720,-1362.16,0.00020028,2]
[381928331,1756414237729,-523.0,0.00020053,2]
[381928332,1756414237738,-168.0,0.00020069,2]
[381928333,1756414237747,-168.0,0.00020153,2]
[381928334,1756414237756,-190.64,0.00020187,2]
[381928335,1756414237765,-731.93312,0.0002022,2]
[381928336,1756414237774,-250.0,0.00020231,2]
[381928337,1756414237783,-162.380719,0.00020274,2]
[381928338,1756414237792,-168.0,0.00020283,2]
[381928339,1756414237801,-168.0,0.00020288,2]
[381928340,1756414237810,-168.0,0.00020357,2]
[381928341,1756414237818,-3292.0,0.00020359,2]
[381928342,1756414237827,-166.84,0.00020379,2]
[381928343,1756414237836,-155.87505876,0.00020491,2]
[381928345,1756414237845,-731.93312,0.0002071,2]
[381928346,1756414237854,-168.3888056,0.00020822,2]
[381928347,1756414237863,-14231.4812014,0.00020832,2]
[381928348,1756414237872,-168.0,0.00020886,2]
[381928349,1756414237882,-1362.16,0.00020899,2]
[381928350,1756414237891,-168.0,0.00020922,2]
[381928351,1756414237900,-168.0,0.00020961,2]
[381928352,1756414237909,-151.0,0.00020997,2]
[381928353,1756414237918,-98419.46311715,0.00021,2]
[381928354,1756414237928,-417.0,0.000211,2]
[381928355,1756414237937,-16382.15296782,0.00021111,2]
[381928356,1756414237946,-156.91,0.00021177,2]
[381928357,1756414237956,-731.93312,0.0002121,2]
[381928358,1756414237965,-147.90889996,0.0002137,2]
[381928359,1756414237977,-26.71029145,0.0002137,2]
[381928360,1756414237985,-161.39,0.00021431,2]
[381928361,1756414237995,-217.64782591,0.000215,2]
[381928362,1756414238004,-600.0,0.00021616,2]
[381928363,1756414238013,-1000.0,0.00021652,2]
[381928364,1756414238022,-181.07,0.00021891,2]
[381928365,1756414238031,-55.42188264,0.00021918,2]
[381928366,1756414238042,-512.0,0.00021918,2]
[381928367,1756414238053,-2948.8735377,0.00021918,2]
[381928368,1756414238064,-1483.70457966,0.00021918,2]
[381928369,1756414238073,-520.69187174,0.00021918,2]
[381928370,1756414238082,-181.08010149,0.00021918,2]
[381928371,1756414238091,-166.84,0.00021933,2]
[381928372,1756414238108,-4063.63990396,0.00022,2]
[381928373,1756414238117,-160.97,0.00022,2]
[381928374,1756414238126,-484.03,0.000221,2]
[381928375,1756414238135,-600.0,0.00022164,2]
[381928376,1756414238144,-1829.04354315,0.00022233,2]
[381928377,1756414238154,-550.1499995,0.00022233,2]
[381928378,1756414238165,-439.3771268,0.00022233,2]
[381928379,1756414239451,-915.6857705,0.00022233,2]
[381928380,1756414239503,-1339.53951054,0.00022233,2]
[381928381,1756414239515,-554.37995939,0.00022233,2]
[381928382,1756414239526,-1116.9294,0.00022233,2]
[381928383,1756414239537,-1061.38642574,0.00022233,2]
[381928384,1756414239548,-3226.36583992,0.00022233,2]
[381928385,1756414239622,-9299.07393052,0.00022233,2]
[381928386,1756414239632,-155.87505876,0.00022255,2]
[381928387,1756414239641,-778.0,0.000223,2]
[381928388,1756414239650,-241.0,0.000223,2]
[381928389,1756414239659,-381.0,0.000223,2]
[381928390,1756414239668,-448.57,0.00022311,2]
[381928391,1756414239678,-3474.0,0.00022387,2]
[381928392,1756414239687,-187.78006525,0.00022466,2]
[381928393,1756414239696,-232.26,0.00022603,2]
[381928394,1756414239706,-600.0,0.00022712,2]
[381928395,1756414239716,-14231.4812014,0.00022761,2]
[381928396,1756414239727,-3372.0,0.00022947,2]
[381928397,1756414239736,-2032.0,0.00022947,2]
[381928398,1756414239746,-566.0,0.00022947,2]
[381928399,1756414239755,-1575.0,0.00022947,2]
[381928400,1756414239764,-599.0,0.00022947,2]
[381928401,1756414239774,-1298.0,0.00022947,2]
[381928402,1756414239783,-718.0,0.00022947,2]
[381928403,1756414239791,-4156.0,0.00022947,2]
[381928404,1756414239801,-6148.0,0.00022947,2]
[381928405,1756414239810,-7070.31561068,0.00022947,2]
[381928406,1756414239822,-3527.39032816,0.00022947,2]
[381928407,1756414239833,-547.88151288,0.00022947,2]
[381928412,1756414242337,-1877.58081888,0.00022947,2]
[381928414,1756414242393,-337.27249606,0.00022947,2]
[381928415,1756414242450,-7750.55923334,0.00022947,2]
[381928416,1756414242460,-895.0,0.00022947,2]
[381928417,1756414242470,-2237.82571812,0.00022973,2]
[381928418,1756414242479,-1636.23399283,0.00022973,2]
[381928419,1756414242489,-277.35679052,0.00022973,2]
[381928420,1756414242499,-16397.4504247,0.0002299,2]
[381928421,1756414242508,-44556.0,0.00023,2]
[381928422,1756414242518,-160.0,0.00023,2]
[381928423,1756414242527,-409.82097998,0.00023,2]
[381928424,1756414242536,-160.0,0.00023,2]
[381928425,1756414242545,-194.72792766,0.00023014,2]
[381928426,1756414242555,-212.25325354,0.00023015,2]
[381928427,1756414242564,-150.66,0.00023251,2]
[381928428,1756414242574,-600.0,0.0002326,2]
[381928429,1756414242584,-156.91,0.00023295,2]
[381928430,1756414242593,-657.84,0.000235,2]
[381928431,1756414242602,-484.03,0.00023543,2]
[381928432,1756414242612,-201.93286099,0.00023562,2]
[381928433,1756414242621,-5511.0,0.000236,3]
[381928434,1756414242629,-600.0,0.00023808,2]
[381928435,1756414242639,-3658.7657392,0.00023902,2]
[381928436,1756414242648,-173.21,0.00024018,2]
[381928437,1756414242657,-155.87505876,0.0002402,2]
[381928438,1756414242666,-1000.0,0.00024058,2]
[381928439,1756414242675,-181.07,0.0002408,2]
[381928440,1756414242684,-209.40437684,0.0002411,2]
[381928441,1756414242694,-948.0,0.00024167,2]
[381928442,1756414242703,-5511.0,0.000242,5]
[381928443,1756414242712,-287.61899177,0.00024342,2]
[381928444,1756414242721,-600.0,0.00024356,2]
[381928445,1756414242731,-1000.0,0.00024658,2]
[381928446,1756414242740,-217.15233878,0.00024658,2]
[381928447,1756414242749,-7094.75112221,0.00024691,2]
[381928448,1756414242764,-4218.555659,0.00024691,2]
[381928449,1756414242775,-2918.17442019,0.00024691,2]
[381928450,1756414242785,-791.0293,0.000247,2]
[381928451,1756414242794,-4485.09,0.0002471,2]
[381928452,1756414242804,-151.0,0.00024797,7]
[381928453,1756414242813,-1096.13,0.000248,7]
[381928454,1756414242822,-172.1321947,0.00024804,2]
[381928455,1756414242831,-266.4235958,0.00024804,2]
[381928456,1756414242840,-2489.09722745,0.0002488,2]
[381928457,1756414242850,-5048.76944406,0.000249,2]
[381928459,1756414242859,-356035.42426,0.000249,2]
[381928461,1756414242868,-600.0,0.00024904,2]
[381928463,1756414242876,-484.03,0.00025085,7]
[381928465,1756414242885,-448.57,0.00025101,2]
[381928467,1756414242895,-14241.4169704,0.0002518,2]
[381928470,1756414242904,-225.18697532,0.00025206,2]
[381928471,1756414242913,-6545.21,0.00025235,2]
[381928473,1756414242922,-14241.4169704,0.00025307,2]
[381928474,1756414242931,-232.26,0.00025342,2]
[381928475,1756414242940,-156.91,0.00025413,2]
[381928476,1756414242949,-600.0,0.00025452,2]
[381928477,1756414242958,-20331.93150606,0.00025567,2]
[381928478,1756414242967,-298.26089446,0.00025711,2]
[381928479,1756414242976,-200.07430801,0.00025754,2]
[381928480,1756414242985,-155.87505876,0.00025784,2]
[381928481,1756414242995,-28482.8339408,0.00025808,2]
[381928482,1756414243004,-1244.56,0.00025836,2]
[381928483,1756414243014,-1732.416,0.00025947,2]
[381928484,1756414243023,-166.0,0.00025947,2]
[381928485,1756414243032,-4156.0,0.00025947,2]
[381928486,1756414243041,-6148.0,0.00025947,2]
[381928487,1756414243050,-17460.238,0.00025947,2]
[381928488,1756414243059,-152.8,0.0002601,2]
[381928489,1756414243068,-152.97,0.0002601,2]
[381928490,1756414243077,-1000.0,0.00026463,2]
[381928491,1756414243086,-163.84624933,0.000266,2]
[381928492,1756414243095,-298.396,0.00026627,14]
[381928493,1756414243105,-484.03,0.00026628,7]
[381928494,1756414243114,-190.64,0.00026676,2]
[381928495,1756414243124,-173.87551257,0.00026694,2]
[381928496,1756414243133,-161.39,0.00026789,2]
[381928497,1756414243142,-5048.76944388,0.00026894,6]
[381928498,1756414243151,-1096.13,0.00027,7]
[381928499,1756414243160,-151.0,0.00027024,7]
[381928500,1756414243170,-309.29654756,0.0002708,2]
[381928501,1756414243179,-520.0,0.00027137,2]
[381928502,1756414243188,-301.43,0.00027205,2]
[381928503,1756414243197,-274.75,0.00027205,2]
[381928504,1756414243207,-408.79,0.00027205,2]
[381928505,1756414243215,-1186.34,0.00027205,2]
[381928506,1756414243225,-539.98,0.00027205,2]
[381928507,1756414243234,-166.18,0.00027205,2]
[381928508,1756414243243,-150.0,0.00027205,2]
[381928509,1756414243252,-1186.34,0.00027205,2]
[381928510,1756414243261,-539.98,0.00027205,2]
[381928511,1756414243270,-166.18,0.00027205,2]
[381928512,1756414243279,-150.0,0.00027205,2]
[381928513,1756414243289,-408.79,0.00027205,2]
[381928514,1756414243298,-1186.34,0.00027205,2]
[381928515,1756414243307,-150.0,0.00027205,2]
[381928516,1756414243316,-539.98,0.00027205,2]
[381928517,1756414243325,-408.79,0.00027205,2]
[381928518,1756414243335,-166.18,0.00027205,2]
[381928519,1756414243343,-166.18,0.00027205,2]
[381928520,1756414243352,-539.98,0.00027205,2]
[381928521,1756414243362,-150.0,0.00027205,2]
[381928522,1756414243371,-408.79,0.00027205,2]
[381928523,1756414243380,-539.98,0.00027205,2]
[381928524,1756414243390,-166.18,0.00027205,2]
[381928525,1756414243400,-539.98,0.00027205,2]
[381928526,1756414243413,-331.89,0.00027205,2]
[381928527,1756414243422,-539.98,0.00027205,2]
[381928528,1756414243431,-539.98,0.00027205,2]
[381928529,1756414243441,-539.98,0.00027205,2]
[381928530,1756414243450,-1049.06734575,0.0002722,2]
[381928531,1756414243461,-456.9110564,0.0002722,2]
[381928532,1756414243470,-1183.54,0.00027305,2]
[381928533,1756414243480,-1000.0,0.00027427,2]
[381928534,1756414243489,-2371.64,0.00027468,2]
[381928535,1756414243498,-155.87505876,0.00027549,2]
[381928536,1756414243507,-1000.0,0.00027579,2]
[381928537,1756414243516,-150.0,0.00027797,2]
[381928538,1756414243525,-1000.0,0.00027802,2]
[381928539,1756414243535,-1000.0,0.00027868,2]
[381928540,1756414243544,-5048.76944388,0.00027891,8]
[381928541,1756414243553,-304.0,0.000279,2]
[381928542,1756414243562,-429.22025106,0.00027915,2]
[381928543,1756414243571,-1000.0,0.0002792,2]
[381928544,1756414243581,-150.0,0.00027929,2]
[381928545,1756414243590,-151.0,0.00027935,2]
[381928546,1756414243599,-150.0,0.00027945,7]
[381928547,1756414243609,-500.0,0.00027945,7]
[381928548,1756414243618,-150.0,0.00027945,7]
[381928549,1756414243627,-150.0,0.00027945,7]
[381928550,1756414243636,-150.0,0.00027945,7]
[381928551,1756414243645,-150.0,0.00027945,7]
[381928552,1756414243654,-500.0,0.00027945,7]
[381928553,1756414243663,-500.0,0.00027945,7]
[381928554,1756414243672,-150.0,0.00027945,7]
[381928555,1756414243681,-500.0,0.00027945,7]
[381928556,1756414243691,-150.0,0.00027945,7]
[381928557,1756414243700,-150.0,0.00027945,7]
[381928558,1756414243711,-150.0,0.00027945,7]
[381928559,1756414243720,-150.0,0.00027945,7]
[381928560,1756414243728,-150.0,0.00027945,7]
[381928561,1756414243738,-150.0,0.00027945,7]
[381928562,1756414243747,-150.0,0.00027945,7]
[381928563,1756414243756,-150.0,0.00027945,7]
[381928564,1756414243766,-150.0,0.00027945,7]
[381928565,1756414243775,-150.0,0.00027945,7]
[381928566,1756414243784,-150.41158014,0.00027945,7]
[381928567,1756414243794,-150.0,0.00027945,7]
[381928568,1756414243804,-150.0,0.00027945,7]
[381928569,1756414243813,-150.0,0.00027945,7]
[381928570,1756414243822,-150.0,0.00027945,2]
[381928571,1756414243831,-500.0,0.00027945,7]
[381928572,1756414243840,-500.0,0.00027945,7]
[381928573,1756414243849,-500.0,0.00027945,7]
[381928574,1756414243858,-500.0,0.00027945,7]
[381928575,1756414243867,-150.0,0.00027945,2]
[381928576,1756414243876,-500.0,0.00027945,7]
[381928577,1756414243886,-500.0,0.00027945,2]
[381928578,1756414243895,-500.0,0.00027945,7]
[381928579,1756414243904,-500.0,0.00027945,7]
[381928580,1756414243913,-1425.0,0.00027954,2]
[381928581,1756414243923,-299.05,0.00027973,2]
[381928582,1756414243933,-151.0,0.00028018,7]
[381928583,1756414243942,-163.164307,0.00028018,7]
[381928584,1756414243951,-163.164307,0.00028018,7]
[381928585,1756414243962,-163.164307,0.00028018,7]
[381928586,1756414243971,-163.164307,0.00028018,7]
[381928587,1756414243980,-1244.56,0.00028028,4]
[381928588,1756414243989,-299.05,0.00028055,2]
[381928589,1756414243999,-1000.0,0.00028071,2]
[381928590,1756414244009,-150.0,0.00028073,2]
[381928591,1756414244018,-232.26,0.00028082,2]
[381928592,1756414244028,-1000.0,0.00028101,2]
[381928593,1756414244037,-1000.0,0.00028105,2]
[381928594,1756414244045,-977.24497391,0.00028129,2]
[381928595,1756414244055,-1000.0,0.0002813,2]
[381928596,1756414244065,-299.05,0.00028137,2]
[381928597,1756414244074,-484.03,0.0002817,30]
[381928598,1756414244084,-150.87131939,0.00028208,2]
[381928599,1756414244093,-151.78,0.00028209,2]
[381928600,1756414244103,-150.0,0.00028219,7]
[381928601,1756414244111,-500.0,0.00028219,7]
[381928602,1756414244120,-150.0,0.00028219,7]
[381928603,1756414244129,-254.88667299,0.00028219,7]
[381928604,1756414244139,-500.0,0.00028219,7]
[381928605,1756414244296,-500.0,0.00028219,7]
[381928606,1756414244306,-150.80445813,0.00028219,7]
[381928607,1756414244315,-500.0,0.00028219,7]
[381928608,1756414244325,-150.0,0.00028219,7]
[381928609,1756414244334,-150.0,0.00028219,7]
[381928610,1756414244342,-150.0,0.00028219,7]
[381928611,1756414244351,-150.0,0.00028219,7]
[381928612,1756414244361,-150.0,0.00028219,7]
[381928613,1756414244371,-150.0,0.00028219,7]
[381928614,1756414244380,-500.0,0.00028219,7]
[381928615,1756414244389,-500.0,0.00028219,7]
[381928616,1756414244398,-500.0,0.00028219,7]
[381928617,1756414244408,-500.0,0.00028219,7]
[381928618,1756414244417,-500.0,0.00028219,7]
[381928619,1756414244430,-500.0,0.00028219,2]
[381928620,1756414244439,-500.0,0.00028219,7]
[381928621,1756414244448,-500.0,0.00028219,7]
[381928622,1756414244458,-150.0,0.00028306,5]
[381928623,1756414244467,-150.0,0.00028313,2]
[381928624,1756414244476,-1000.0,0.00028342,2]
[381928625,1756414244485,-1000.0,0.00028353,2]
[381928626,1756414244495,-150.0,0.00028405,2]
[381928627,1756414244504,-150.0,0.00028411,2]
[381928628,1756414244513,-150.0,0.00028422,2]
[381928629,1756414244523,-150.0,0.00028435,2]
[381928630,1756414244531,-320.74051982,0.00028449,2]
[381928631,1756414244540,-489.99943124,0.00028463,2]
[381928632,1756414244550,-150.0,0.00028478,2]
[381928633,1756414244559,-1000.0,0.00028479,2]
[381928634,1756414244568,-500.0,0.00028493,7]
[381928635,1756414244577,-150.0,0.00028493,7]
[381928636,1756414244586,-500.0,0.00028493,7]
[381928637,1756414244595,-500.0,0.00028493,7]
[381928638,1756414244605,-500.0,0.00028493,7]
[381928639,1756414244614,-200.0,0.00028493,7]
[381928640,1756414244623,-200.0,0.00028493,7]
[381928641,1756414244632,-200.0,0.00028493,7]
[381928642,1756414244641,-200.0,0.00028493,7]
[381928643,1756414244651,-177.62571771,0.00028493,7]
[381928644,1756414244665,-22.37428229,0.00028493,7]
[381928645,1756414244674,-150.0,0.00028493,7]
[381928646,1756414244683,-500.0,0.00028493,7]
[381928647,1756414244692,-500.0,0.00028493,7]
[381928648,1756414244702,-500.0,0.00028493,7]
[381928649,1756414244712,-500.0,0.00028493,7]
[381928650,1756414244721,-500.0,0.00028493,7]
[381928651,1756414244730,-356.00544515,0.00028493,2]
[381928652,1756414244741,-143.99455485,0.00028493,2]
[381928653,1756414244750,-387.31845517,0.00028493,7]
[381928654,1756414244761,-112.68154483,0.00028493,7]
[381928655,1756414244770,-500.0,0.00028493,7]
[381928656,1756414244780,-1000.0,0.00028529,2]
[381928657,1756414244789,-1411.28908195,0.00028552,2]
[381928658,1756414244800,-13.71091805,0.00028552,2]
[381928659,1756414244809,-150.0,0.00028621,2]
[381928660,1756414244818,-150.0,0.00028658,2]
[381928661,1756414244829,-150.0,0.00028662,2]
[381928662,1756414244838,-74.53581612,0.00028718,2]
[381928664,1756414244856,-716.73120004,0.00025947,2]
[381928667,1756414245355,-178.26879996,0.00025947,2]
[381928668,1756414245365,-84.33120004,0.00028718,2]
[381928669,1756414245415,-841.13298384,0.00028718,2]
[381928670,1756414245425,-907.54550316,0.00028741,2]
[381928671,1756414245436,-517.45449684,0.00028741,2]
[381928672,1756414245446,-770.19609855,0.00028751,2]
[381928673,1756414245472,-654.80390145,0.00028751,2]
[381928674,1756414245482,-150.0,0.00028758,2]
[381928675,1756414245492,-363.20794228,0.00028767,7]
[381928676,1756414245636,-86.79205772,0.00028767,7]
[381928677,1756414245646,-150.0,0.00028767,7]
[381928678,1756414245655,-150.0,0.00028767,7]
[381928679,1756414245664,-500.0,0.00028767,7]
[381928680,1756414245674,-400.0,0.00028767,7]
[381928681,1756414245682,-150.0,0.00028767,7]
[381928682,1756414245691,-500.0,0.00028767,7]
[381928683,1756414245701,-500.0,0.00028767,7]
[381928684,1756414245710,-500.0,0.00028767,7]
[381928685,1756414245720,-500.0,0.00028767,7]
[381928686,1756414245729,-500.0,0.00028767,7]
[381928687,1756414245739,-51.20604072,0.00028767,2]
[381928688,1756414245750,-448.79395928,0.00028767,2]
[381928689,1756414245760,-500.0,0.00028767,7]
[381928690,1756414245769,-500.0,0.00028767,7]
[381928691,1756414245778,-242.21709933,0.00028835,2]
[381928692,1756414245787,-250.0,0.00028854,5]
[381928693,1756414245796,-1425.0,0.00028855,2]
[381928694,1756414245805,-150.0,0.00028867,2]
[381928695,1756414245814,-1000.0,0.00028869,2]
[381928696,1756414245823,-1425.0,0.00028873,2]
[381928697,1756414245831,-3554.87184139,0.00028888,10]
[381928698,1756414245843,-1493.89760249,0.00028888,10]
[381928699,1756414245852,-274.00239751,0.000289,2]
[381928700,1756414245863,-2455.3895866,0.000289,2]
[381928701,1756414245874,-3399.37802863,0.000289,2]
[381928702,1756414245885,-473.43458198,0.000289,2]
[381928703,1756414245896,-263.98149903,0.000289,2]
[381928704,1756414245907,-1410.11623139,0.000289,2]
[381928705,1756414245918,-921.23341343,0.000289,2]
[381928708,1756414248254,194.24301584,0.0003013,120]
[381928717,1756414294449,543.74,0.0003013,120]
[381928720,1756414720845,169.89562989,0.00022462,42]
[381928721,1756414738148,192.45,0.00029343,120]
[381928722,1756414804370,163.0,0.00014128,2]
[381928732,1756415003295,184.02,0.00013699,2]
[381928827,1756415431579,-152.23,0.00018917,2]
[381928828,1756415431588,-151.58,0.00018917,2]
[381928829,1756415431598,-150.75,0.00018917,2]
[381928830,1756415431607,-150.77,0.00018917,2]
[381928831,1756415431616,-151.0,0.00019178,2]
[381928832,1756415431626,-151.0,0.00019453,2]
[381928833,1756415431635,-92.67,0.00019726,2]
[381928834,1756415431647,-63.917,0.00019726,2]
[381928835,1756415431657,-187.66,0.00019863,2]
[381928836,1756415431666,-399.12436014,0.00020174,2]
[381928837,1756415431675,-184.02,0.00020187,2]
[381928838,1756415431685,-162.38071902,0.00020274,2]
[381928839,1756415431694,-251.0,0.00020808,2]
[381928840,1756415431703,-399.12436014,0.00021087,2]
[381928841,1756415431713,-500.0,0.00021141,2]
[381928842,1756415431722,-1200.0,0.00021152,2]
[381928843,1756415431732,-305.37858262,0.00021153,2]
[381928844,1756415431741,-300.0,0.00021153,2]
[381928845,1756415431750,-3374.0,0.00021154,2]
[381928846,1756415431759,-1658.0,0.00021154,2]
[381928847,1756415431768,-599.0,0.00021154,2]
[381928848,1756415431777,-566.0,0.00021154,2]
[381928849,1756415431786,-1298.0,0.00021154,2]
[381928850,1756415431795,-1174.0,0.00021154,2]
[381928851,1756415431805,-895.0,0.00021154,2]
[381928852,1756415431814,-1001.75729933,0.00021154,2]
[381928853,1756415431829,-2000.0,0.00021154,2]
[381928854,1756415431841,-1154.24270067,0.00021154,2]
[381928855,1756415431850,-718.0,0.00021154,2]
[381928856,1756415431860,-274.66461661,0.00021154,2]
[381928857,1756415431874,-5873.33538339,0.00021154,2]
[381928858,1756415431884,-21104.0,0.00021154,2]
[381928859,1756415431893,-500.0,0.00021196,2]
[381928860,1756415431903,-500.0,0.00021251,2]
[381928862,1756415431912,-500.0,0.00021306,2]
[381928864,1756415431921,-500.0,0.00021361,2]
[381928866,1756415431930,-500.0,0.00021416,2]
[381928867,1756415431939,-500.0,0.00021471,2]
[381928868,1756415431949,-500.0,0.00021526,2]
[381928869,1756415431958,-500.0,0.00021581,2]
[381928871,1756415431967,-600.0,0.00021616,2]
[381928872,1756415431977,-500.0,0.00021636,2]
[381928873,1756415431990,-500.0,0.00021691,2]
[381928874,1756415432000,-999.99,0.00021757,2]
[381928875,1756415432010,-499.99,0.00021757,2]
[381928876,1756415432020,-8214.8,0.00021757,2]
[381928878,1756415432030,-9999.99,0.00021757,2]
[381928879,1756415432039,-150.99,0.00021757,2]
[381928880,1756415432048,-1094.57,0.00021757,2]
[381928881,1756415432058,-399.12436014,0.00022,2]
[381928882,1756415432067,-600.0,0.00022164,2]
[381928883,1756415432077,-23301.3,0.00022609,2]
[381928884,1756415432086,-500.0,0.0002269,2]
[381928885,1756415432095,-600.0,0.00022712,2]
[381928886,1756415432104,-2452.14,0.00022748,2]
[381928887,1756415432113,-420.0,0.00023006,2]
[381928888,1756415432122,-480.0,0.00023114,2]
[381928889,1756415432131,-5000.0,0.00023167,2]
[381928890,1756415432140,-187.66,0.00023259,2]
[381928891,1756415432150,-600.0,0.0002326,2]
[381928892,1756415432159,-160.0,0.00023265,2]
[381928893,1756415432168,-212.25325354,0.00023265,2]
[381928894,1756415432177,-409.82097998,0.00023265,2]
[381928895,1756415432186,-160.0,0.00023265,2]
[381928896,1756415432195,-151.97,0.0002327,2]
[381928897,1756415432204,-150.53,0.0002327,2]
[381928898,1756415432213,-168.0,0.00023329,2]
[381928899,1756415432222,-633.0,0.00023343,2]
[381928900,1756415432230,-500.0,0.00023421,2]
[381928901,1756415432245,-500.0,0.00023421,2]
[381928902,1756415432254,-186.07,0.00023469,2]
[381928903,1756415432263,-192.45,0.00023475,2]
[381928904,1756415432272,-300.5457,0.00023541,2]
[381928905,1756415432281,-159.4,0.00023552,2]
[381928906,1756415432290,-500.0,0.0002356,2]
[381928907,1756415432299,-168.58116101,0.0002356,2]
[381928908,1756415432308,-500.0,0.0002356,2]
[381928909,1756415432318,-500.0,0.00023586,2]
[381928910,1756415432327,-172.83071015,0.00023586,2]
[381928911,1756415432336,-500.0,0.00023586,2]
[381928912,1756415432344,-1787.21,0.00023612,2]
[381928913,1756415432353,-500.0,0.00023663,2]
[381928914,1756415432362,-500.0,0.00023663,2]
[381928915,1756415432371,-500.0,0.00023663,2]
[381928916,1756415432380,-500.0,0.00023663,2]
[381928917,1756415432389,-500.80732442,0.00023663,2]
[381928918,1756415432398,-322.6107,0.00023699,2]
[381928919,1756415432407,-151.0,0.00023699,2]
[381928920,1756415432417,-300.0,0.00023699,2]
[381928921,1756415432426,-1000.0,0.00023699,2]
[381928922,1756415432435,-300.0,0.00023699,2]
[381928923,1756415432443,-318.80508842,0.00023699,2]
[381928924,1756415432452,-300.0,0.00023699,2]
[381928925,1756415432462,-160.0,0.00023699,2]
[381928926,1756415432471,-2618.2481025,0.00023699,2]
[381928927,1756415432480,-300.0,0.00023699,2]
[381928928,1756415432489,-300.0,0.00023699,2]
[381928929,1756415432498,-300.0,0.00023699,2]
[381928930,1756415432507,-300.0,0.00023699,2]
[381928931,1756415432516,-280.0,0.00023699,2]
[381928932,1756415432524,-300.0,0.00023699,2]
[381928933,1756415432533,-300.0,0.00023699,2]
[381928934,1756415432542,-209.08099929,0.00023699,2]
[381928935,1756415432551,-300.0,0.00023699,2]
[381928936,1756415432560,-300.0,0.00023699,2]
[381928937,1756415432569,-151.0,0.00023699,2]
[381928938,1756415432579,-156.587,0.00023699,2]
[381928939,1756415432587,-301.29610477,0.00023699,2]
[381928940,1756415432597,-1000.0,0.00023699,2]
[381928941,1756415432606,-151.0,0.00023699,2]
[381928942,1756415432615,-1000.0,0.00023699,2]
[381928943,1756415432624,-1000.0,0.00023699,2]
[381928944,1756415432633,-151.0,0.00023699,2]
[381928945,1756415432642,-1000.0,0.00023699,2]
[381928946,1756415432651,-313.65369343,0.00023699,2]
[381928947,1756415432660,-277.35679052,0.00023699,2]
[381928948,1756415432669,-721.12765535,0.00023699,2]
[381928949,1756415432678,-151.0,0.00023699,2]
[381928950,1756415432687,-151.0,0.00023699,2]
[381928951,1756415432696,-151.0,0.00023699,2]
[381928952,1756415432705,-151.0,0.00023699,2]
[381928953,1756415432714,-1000.0,0.00023699,2]
[381928954,1756415432723,-151.0,0.00023699,2]
[381928955,1756415432732,-656.28393085,0.00023699,2]
[381928956,1756415432741,-151.0,0.00023699,2]
[381928957,1756415432750,-151.0,0.00023699,2]
[381928958,1756415432759,-151.0,0.00023699,2]
[381928959,1756415432768,-151.0,0.00023699,2]
[381928960,1756415432778,-151.0,0.00023699,2]
[381928961,1756415432787,-151.0,0.00023699,2]
[381928962,1756415432796,-207.265879,0.00023699,2]